bitfinex/quotes_SOLUSD_20230702
["timestamp","ask_amount","ask_price","bid_price","bid_amount"]
[1688270491686,22.496,18.803,18.792,22.508]
[1688270492389,22.496,18.803,18.793,55.0]
[1688270492691,22.496,18.803,18.796,22.504]
[1688270492895,22.496,18.803,18.797,55.0]
[1688270493130,22.496,18.803,18.797,77.503]
[1688270493392,22.496,18.803,18.786,57.965]
[1688270493597,22.496,18.803,18.787,75.0]
[1688270493776,22.496,18.803,18.793,22.507]
[1688270493975,62.36807675,18.811,18.794,55.0]
[1688270494296,22.496,18.803,18.794,22.506]
[1688270495489,22.496,18.803,18.785,105.771]
[1688270495798,20.0,18.802,18.788,22.513]
[1688270495995,80.434,18.798,18.787,22.514]
[1688270496296,22.502,18.798,18.787,22.514]
[1688270496481,22.503,18.798,18.788,20.0]
[1688270496682,22.503,18.798,18.791,22.51]
[1688270496895,22.503,18.798,18.792,55.0]
[1688270497198,22.503,18.798,18.792,77.508]
[1688270497398,22.503,18.798,18.783,57.914]
[1688270497399,22.503,18.798,18.788,22.513]
[1688270497696,22.503,18.798,18.78,57.986]
[1688270497904,22.503,18.798,18.784,22.518]
[1688270500589,22.503,18.798,18.782,22.521]
[1688270500802,55.0,18.797,18.782,22.521]
[1688270501096,22.508,18.793,18.782,22.521]
[1688270502204,22.508,18.793,18.781,20.0]
[1688270502395,22.508,18.793,18.782,55.0]
[1688270502699,22.508,18.793,18.782,77.521]
[1688270503201,22.508,18.793,18.774,22.521]
[1688270503500,75.0,18.792,18.778,22.525]
[1688270503698,22.514,18.788,18.778,22.525]
[1688270504580,22.514,18.788,18.779,55.0]
[1688270504780,22.514,18.788,18.781,22.521]
[1688270504998,20.0,18.792,18.781,22.521]
[1688270505199,22.012,18.79,18.781,22.521]
[1688270505902,22.012,18.79,18.77,10.09]
[1688270506204,22.012,18.79,18.776,22.528]
[1688270506390,22.012,18.79,18.777,55.0]
[1688270506591,22.012,18.79,18.777,77.527]
[1688270508802,22.509,18.792,18.778,20.0]
[1688270509006,57.939,18.796,18.784,22.518]
[1688270509204,57.939,18.796,18.785,55.0]
[1688270509387,22.51,18.792,18.785,55.0]
[1688270509705,22.51,18.792,18.781,22.522]
[1688270509999,22.51,18.792,18.782,55.0]
[1688270510208,22.51,18.792,18.782,77.521]
[1688270518392,22.51,18.792,18.78,22.523]
[1688270518623,20.0,18.791,18.778,22.525]
[1688270518838,80.478,18.788,18.777,22.526]
[1688270519691,80.478,18.788,18.772,58.008]
[1688270519894,80.478,18.788,18.766,10.83719922]
[1688270520191,186.304,18.781,18.767,22.538]
[1688270520994,55.0,18.78,18.758,58.052]
[1688270521313,55.0,18.78,18.746,53.68]
[1688270521314,186.394,18.772,18.757,22.55]
[1688270521523,186.394,18.772,18.75,58.052]
[1688270521811,186.394,18.772,18.741,28.0732721]
[1688270521812,22.54,18.767,18.755,22.553]
[1688270523139,55.0,18.766,18.746,58.092]
[1688270523322,22.547,18.76,18.749,22.56]
[1688270524313,22.547,18.76,18.747,22.563]
[1688270524612,22.547,18.76,18.74,10.83719922]
[1688270524816,45.11,18.76,18.745,35.69417078]
[1688270525015,45.11,18.76,18.746,55.0]
[1688270525406,45.11,18.76,18.746,77.564]
[1688270525721,45.11,18.76,18.745,13.12917078]
[1688270526311,45.11,18.76,18.746,22.564]
[1688270526612,22.563,18.76,18.746,22.564]
[1688270526811,22.548,18.76,18.747,20.0]
[1688270527019,22.548,18.76,18.75,22.558]
[1688270527199,22.548,18.76,18.751,20.0]
[1688270527399,22.548,18.76,18.752,22.557]
[1688270527702,22.548,18.76,18.738,52.41769651]
[1688270527703,22.548,18.76,18.745,13.12917078]
[1688270527910,80.597,18.76,18.748,22.561]
[1688270528229,22.548,18.76,18.748,22.561]
[1688270529615,22.548,18.76,18.751,22.557]
[1688270530807,22.548,18.76,18.752,55.0]
[1688270531015,22.548,18.76,18.753,22.555]
[1688270531212,22.548,18.76,18.747,58.088]
[1688270531213,22.548,18.76,18.752,22.557]
[1688270532014,105.881,18.767,18.752,22.557]
[1688270532015,22.547,18.761,18.753,55.0]
[1688270532209,22.545,18.763,18.755,22.553]
[1688270532412,22.545,18.763,18.756,55.0]
[1688270532614,22.545,18.763,18.757,22.55]
[1688270532812,22.545,18.763,18.751,58.074]
[1688270532813,22.545,18.763,18.755,22.553]
[1688270533200,22.545,18.763,18.751,58.075]
[1688270533409,22.545,18.763,18.752,55.0]
[1688270533601,22.545,18.763,18.742,58.035]
[1688270533807,22.545,18.763,18.744,80.664]
[1688270534111,29.82849386,18.763,18.744,80.664]
[1688270534309,22.552,18.757,18.744,80.664]
[1688270535108,22.552,18.757,18.748,22.562]
[1688270535317,22.552,18.757,18.741,164.126]
[1688270535509,22.552,18.757,18.739,58.111]
[1688270536727,29.83549386,18.757,18.736,58.122]
[1688270536913,55.0,18.756,18.737,20.0]
[1688270537222,22.559,18.751,18.741,22.57]
[1688270538003,22.559,18.751,18.744,22.566]
[1688270538224,22.559,18.751,18.745,55.0]
[1688270538417,22.559,18.751,18.745,77.565]
[1688270539224,22.559,18.751,18.745,55.0]
[1688270539921,20.0,18.75,18.742,22.568]
[1688270540121,20.0,18.75,18.734,106.06]
[1688270540122,22.562,18.748,18.741,22.57]
[1688270540625,58.064,18.755,18.741,22.57]
[1688270540825,22.56,18.75,18.741,22.57]
[1688270541321,22.56,18.75,18.744,22.566]
[1688270541528,22.56,18.75,18.745,77.565]
[1688270542417,22.56,18.75,18.745,55.0]
[1688270542831,22.548,18.76,18.745,135.66]
[1688270543009,58.021,18.77,18.746,20.0]
[1688270543209,58.021,18.77,18.753,22.556]
[1688270543416,22.543,18.765,18.753,22.556]
[1688270543622,22.543,18.765,18.754,55.0]
[1688270544308,22.043,18.765,18.749,58.082]
[1688270544509,29.32649386,18.765,18.75,75.0]
[1688270544709,7.28349386,18.764,18.743,58.101]
[1688270545035,22.55,18.758,18.744,55.0]
[1688270545409,22.55,18.758,18.747,22.562]
[1688270546931,22.55,18.758,18.74,58.11]
[1688270546932,29.83349386,18.758,18.74,58.11]
[1688270547235,29.83349386,18.758,18.741,20.0]
[1688270547236,62.28349386,18.757,18.741,20.0]
[1688270547437,22.557,18.753,18.744,22.566]
[1688270547725,22.557,18.753,18.742,22.568]
[1688270548135,22.557,18.753,18.73,106.082]
[1688270548136,75.0,18.752,18.73,106.082]
[1688270548428,75.0,18.752,18.732,58.133]
[1688270548429,22.565,18.746,18.732,58.133]
[1688270549017,22.565,18.746,18.732,22.58]
[1688270549218,29.84849386,18.746,18.732,22.58]
[1688270549622,55.0,18.745,18.732,22.58]
[1688270549822,80.677,18.742,18.73,22.582]
[1688270550030,80.677,18.742,18.731,20.0]
[1688270550234,80.677,18.742,18.731,42.582]
[1688270550527,80.677,18.742,18.731,42.581]
[1688270550733,22.57,18.742,18.731,42.581]
[1688270550923,10.17,18.76,18.731,53.41819922]
[1688270551126,27.33332899,18.767,18.732,57.80325074]
[1688270551322,22.555,18.754,18.741,80.677]
[1688270551630,22.555,18.754,18.745,22.565]
[1688270551932,22.555,18.754,18.746,77.563]
[1688270552831,22.555,18.754,18.732,10.83719922]
[1688270552832,22.555,18.754,18.744,22.566]
[1688270553031,22.555,18.754,18.742,22.568]
[1688270553620,22.555,18.754,18.735,58.125]
[1688270553827,22.555,18.754,18.732,10.83719922]
[1688270553828,80.645,18.749,18.738,22.573]
[1688270554236,80.645,18.749,18.734,22.578]
[1688270554429,22.561,18.749,18.734,22.578]
[1688270555943,22.561,18.749,18.739,22.573]
[1688270556125,22.561,18.749,18.735,113.123]
[1688270556126,22.561,18.749,18.741,22.57]
[1688270556642,22.561,18.749,18.742,55.0]
[1688270556829,22.561,18.749,18.744,22.567]
[1688270557326,20.0,18.753,18.744,22.567]
[1688270557327,22.56,18.75,18.744,22.567]
[1688270557527,80.64,18.75,18.736,22.576]
[1688270557722,22.568,18.744,18.734,22.578]
[1688270557924,128.621,18.737,18.724,22.591]
[1688270558123,22.575,18.737,18.724,22.591]
[1688270558620,22.568,18.743,18.724,33.42819922]
[1688270558928,10.13,18.76,18.737,80.691]
[1688270558929,105.932,18.758,18.737,80.691]
[1688270559126,22.559,18.751,18.737,22.574]
[1688270559319,80.648,18.751,18.731,106.078]
[1688270559525,87.93149386,18.751,18.732,22.58]
[1688270560134,22.566,18.745,18.732,22.58]
[1688270560848,55.0,18.744,18.731,22.581]
[1688270561026,22.571,18.741,18.731,22.581]
[1688270561230,22.571,18.741,18.725,58.156]
[1688270561432,20.0,18.74,18.73,22.583]
[1688270561746,22.573,18.74,18.73,22.583]
[1688270562043,22.566,18.745,18.736,22.576]
[1688270563144,22.566,18.745,18.727,58.15]
[1688270563343,22.566,18.745,18.735,22.577]
[1688270564142,7.26569325,18.753,18.735,22.577]
[1688270564143,22.565,18.746,18.735,22.577]
[1688270564541,22.565,18.746,18.736,55.0]
[1688270564842,22.565,18.746,18.735,22.576]
[1688270565143,22.565,18.746,18.73,58.141]
[1688270565340,22.565,18.746,18.735,22.577]
[1688270566643,22.565,18.746,18.739,22.573]
[1688270567542,22.565,18.746,18.74,55.0]
[1688270567742,22.565,18.746,18.741,22.57]
[1688270567948,22.565,18.746,18.739,22.572]
[1688270568176,58.084,18.753,18.731,20.0]
[1688270568456,58.084,18.753,18.72,10.14]
[1688270568457,22.565,18.746,18.739,22.572]
[1688270569935,22.563,18.748,18.739,22.572]
[1688270570135,164.007,18.756,18.74,55.0]
[1688270570335,22.559,18.751,18.744,22.566]
[1688270570536,22.559,18.751,18.742,22.568]
[1688270570835,22.559,18.751,18.737,58.119]
[1688270570836,20.0,18.75,18.737,22.574]
[1688270571034,20.0,18.75,18.738,22.573]
[1688270571035,22.564,18.747,18.738,22.573]
[1688270571236,22.564,18.747,18.736,22.575]
[1688270571435,22.564,18.747,18.727,58.149]
[1688270571637,55.0,18.746,18.728,20.0]
[1688270571837,22.571,18.741,18.728,20.0]
[1688270572141,22.571,18.741,18.731,22.581]
[1688270572741,22.576,18.737,18.722,106.128]
[1688270573341,22.573,18.739,18.729,22.584]
[1688270573557,22.572,18.74,18.729,80.729]
[1688270573855,22.572,18.74,18.729,22.584]
[1688270574655,22.572,18.74,18.729,80.729]
[1688270575154,22.57,18.742,18.729,80.729]
[1688270575359,22.57,18.742,18.73,20.0]
[1688270575673,22.57,18.742,18.733,22.579]
[1688270575844,22.57,18.742,18.732,22.581]
[1688270576360,22.57,18.742,18.733,55.0]
[1688270576543,22.57,18.742,18.735,22.577]
[1688270577052,22.57,18.742,18.733,22.579]
[1688270578861,20.0,18.741,18.729,22.584]
[1688270579162,20.0,18.741,18.725,58.156]
[1688270579163,22.575,18.738,18.722,22.592]
[1688270579544,55.0,18.737,18.714,106.173]
[1688270579854,22.583,18.731,18.714,106.173]
[1688270580249,22.583,18.731,18.72,22.595]
[1688270580557,22.583,18.731,18.72,80.768]
[1688270580751,22.583,18.731,18.721,20.0]
[1688270581056,22.583,18.731,18.723,22.591]
[1688270581246,22.581,18.733,18.723,22.591]
[1688270581447,22.576,18.737,18.723,22.591]
[1688270581665,22.574,18.738,18.724,20.0]
[1688270581849,22.574,18.738,18.72,10.12]
[1688270581850,10.17,18.73,18.718,52.41769651]
[1688270582049,186.847,18.727,18.698,58.238]
[1688270582252,10.17,18.72,18.7,30.0]
[1688270582440,7.26569325,18.729,18.703,22.615]
[1688270582646,22.598,18.719,18.703,22.615]
[1688270584144,80.774,18.719,18.703,22.615]
[1688270584348,80.774,18.719,18.693,10.83719922]
[1688270584558,55.0,18.718,18.7,22.619]
[1688270584762,7.26569325,18.719,18.7,22.619]
[1688270584960,10.17,18.72,18.7,32.739]
[1688270584961,22.596,18.72,18.7,32.739]
[1688270585549,22.596,18.72,18.7,90.9]
[1688270585762,22.596,18.72,18.701,20.0]
[1688270585971,22.596,18.72,18.706,22.612]
[1688270586143,22.596,18.72,18.707,20.0]
[1688270586345,197.042,18.72,18.707,20.0]
[1688270586560,55.0,18.719,18.698,22.612]
[1688270586867,80.799,18.713,18.699,20.0]
[1688270587045,80.799,18.713,18.692,106.3]
[1688270587046,22.612,18.707,18.697,22.623]
[1688270587371,58.19,18.715,18.695,22.625]
[1688270587673,22.605,18.713,18.695,22.625]
[1688270587844,20.0,18.712,18.695,22.625]
[1688270588174,22.611,18.707,18.695,22.625]
[1688270588372,80.824,18.707,18.69,22.631]
[1688270588552,55.0,18.706,18.691,20.0]
[1688270588748,80.824,18.707,18.693,22.628]
[1688270588749,58.213,18.707,18.693,22.628]
[1688270588963,10.13,18.71,18.693,22.628]
[1688270589264,22.614,18.706,18.691,22.631]
[1688270589450,75.0,18.705,18.672,52.15726318]
[1688270589645,75.0,18.705,18.678,106.377]
[1688270589646,80.876,18.696,18.678,106.377]
[1688270589849,22.626,18.696,18.681,22.642]
[1688270590057,10.13,18.71,18.681,22.642]
[1688270590255,94.9481,18.711,18.681,22.642]
[1688270590458,22.614,18.706,18.681,45.284]
[1688270590750,22.614,18.706,18.689,80.901]
[1688270590948,22.614,18.706,18.68,10.14]
[1688270591170,42.642,18.71,18.69,22.631]
[1688270591375,42.642,18.71,18.691,75.0]
[1688270591569,22.61,18.709,18.696,80.869]
[1688270592048,22.61,18.709,18.696,22.624]
[1688270592663,22.61,18.709,18.697,55.0]
[1688270592865,22.61,18.709,18.7,22.619]
[1688270593173,22.61,18.709,18.698,22.622]
[1688270593467,22.61,18.709,18.692,22.629]
[1688270593662,22.61,18.709,18.669,20.0]
[1688270593663,22.61,18.709,18.68,106.365]
[1688270593972,518.918,18.71,18.686,22.636]
[1688270593973,22.627,18.694,18.686,22.636]
[1688270594264,22.627,18.694,18.682,22.64]
[1688270594649,22.627,18.694,18.681,22.642]
[1688270594856,22.627,18.694,18.67,10.14]
[1688270594857,22.627,18.694,18.679,187.32]
[1688270595054,91.3987,18.706,18.68,10.14]
[1688270595258,22.623,18.698,18.687,80.91]
[1688270595466,22.621,18.7,18.687,80.91]
[1688270595653,91.3987,18.706,18.687,80.91]
[1688270595859,22.616,18.704,18.687,80.91]
[1688270596157,22.597,18.72,18.699,187.121]
[1688270596364,22.597,18.72,18.7,75.0]
[1688270596672,80.77,18.72,18.706,22.613]
[1688270596870,22.597,18.72,18.706,80.829]
[1688270597170,22.597,18.72,18.709,22.608]
[1688270597473,106.095,18.729,18.709,80.815]
[1688270597672,10.17,18.73,18.709,22.608]
[1688270597673,22.591,18.724,18.709,22.608]
[1688270597871,22.591,18.724,18.691,83.4764]
[1688270597872,20.0,18.723,18.707,22.611]
[1688270598196,10.17,18.73,18.691,83.4764]
[1688270598197,80.774,18.719,18.709,22.608]
[1688270598376,80.774,18.719,18.701,58.23]
[1688270598557,80.774,18.719,18.702,55.0]
[1688270599154,80.774,18.719,18.694,58.253]
[1688270599359,80.808,18.711,18.699,22.62]
[1688270599757,80.808,18.711,18.691,58.262]
[1688270600071,90.944,18.72,18.685,22.637]
[1688270600072,80.849,18.702,18.685,22.637]
[1688270600256,80.849,18.702,18.676,58.31]
[1688270600569,80.849,18.702,18.682,22.641]
[1688270600750,22.618,18.702,18.682,22.641]
[1688270600957,58.207,18.709,18.682,22.641]
[1688270601265,22.617,18.703,18.682,22.641]
[1688270601575,20.0,18.719,18.69,10.14]
[1688270601779,58.2,18.712,18.698,22.621]
[1688270602070,20.0,18.719,18.699,55.0]
[1688270602274,114.1233,18.726,18.699,55.0]
[1688270602457,22.602,18.716,18.703,22.615]
[1688270602978,22.602,18.716,18.707,22.611]
[1688270603153,22.595,18.721,18.713,22.604]
[1688270603360,22.595,18.721,18.704,55.0]
[1688270603361,80.764,18.721,18.704,55.0]
[1688270603577,80.764,18.721,18.704,58.222]
[1688270603777,80.764,18.721,18.705,55.0]
[1688270604069,80.764,18.721,18.703,55.0]
[1688270604070,80.764,18.721,18.703,22.615]
[1688270604267,80.764,18.721,18.705,22.614]
[1688270604668,80.764,18.721,18.71,22.607]
[1688270605050,80.764,18.721,18.701,58.231]
[1688270605271,80.764,18.721,18.702,55.0]
[1688270605572,80.764,18.721,18.704,80.836]
[1688270605775,80.764,18.721,18.709,22.608]
[1688270605975,80.764,18.721,18.71,55.0]
[1688270605976,22.595,18.721,18.71,55.0]
[1688270606165,22.595,18.721,18.711,22.606]
[1688270607073,22.595,18.721,18.708,22.609]
[1688270607275,22.595,18.721,18.69,10.17]
[1688270607477,22.606,18.712,18.705,22.613]
[1688270607659,22.606,18.712,18.699,22.62]
[1688270608156,22.606,18.712,18.69,10.17]
[1688270608361,22.606,18.712,18.697,22.623]
[1688270609057,22.606,18.712,18.687,58.274]
[1688270609265,10.17,18.71,18.688,20.0]
[1688270609574,80.84,18.704,18.693,22.628]
[1688270609960,80.84,18.704,18.689,22.632]
[1688270610163,20.0,18.703,18.687,22.634]
[1688270610359,80.862,18.699,18.68,10.14]
[1688270610570,80.862,18.699,18.685,22.637]
[1688270610757,80.862,18.699,18.677,106.383]
[1688270611164,80.862,18.699,18.67,10.14]
[1688270611165,80.862,18.699,18.684,22.639]
[1688270611571,22.622,18.699,18.684,80.924]
[1688270612078,22.622,18.699,18.689,80.901]
[1688270612276,22.622,18.699,18.689,22.633]
[1688270612659,22.622,18.699,18.69,55.0]
[1688270612867,22.628,18.704,18.692,22.629]
[1688270613061,22.615,18.704,18.692,22.629]
[1688270613376,20.0,18.703,18.686,22.636]
[1688270613577,20.0,18.703,18.678,106.377]
[1688270613578,80.863,18.698,18.678,58.303]
[1688270613761,80.863,18.698,18.685,22.638]
[1688270614280,80.925,18.698,18.685,22.638]
[1688270614468,22.622,18.698,18.685,22.638]
[1688270615176,22.622,18.698,18.683,22.64]
[1688270615475,22.622,18.698,18.67,10.17]
[1688270615476,22.622,18.698,18.685,22.638]
[1688270615685,22.622,18.698,18.686,55.0]
[1688270615863,96.6632,18.709,18.689,22.632]
[1688270615864,58.241,18.702,18.689,22.632]
[1688270616062,22.622,18.699,18.689,22.632]
[1688270616261,106.202,18.71,18.689,22.632]
[1688270616465,96.6632,18.715,18.69,55.0]
[1688270616679,22.608,18.71,18.697,80.866]
[1688270616978,22.608,18.71,18.698,55.0]
[1688270617181,22.608,18.71,18.681,98.5237]
[1688270617384,22.608,18.71,18.69,58.264]
[1688270617677,22.608,18.71,18.696,22.624]
[1688270618262,22.608,18.71,18.694,22.626]
[1688270618459,80.838,18.704,18.692,22.628]
[1688270618687,22.615,18.704,18.692,22.628]
[1688270618872,58.204,18.71,18.693,55.0]
[1688270619183,22.614,18.705,18.698,22.621]
[1688270619584,58.275,18.712,18.698,22.621]
[1688270619782,126.135,18.722,18.699,75.0]
[1688270619971,22.604,18.714,18.705,22.613]
[1688270620871,80.791,18.714,18.705,22.613]
[1688270622391,22.604,18.714,18.705,22.613]
[1688270624067,22.609,18.71,18.7,22.62]
[1688270624467,22.609,18.71,18.698,22.621]
[1688270624670,22.609,18.71,18.696,22.624]
[1688270624671,30.16797896,18.71,18.696,22.624]
[1688270624869,30.16797896,18.71,18.68,10.23]
[1688270624870,22.615,18.704,18.688,58.271]
[1688270625090,22.615,18.704,18.689,20.0]
[1688270625393,22.615,18.704,18.688,58.271]
[1688270625693,22.615,18.704,18.693,22.627]
[1688270625879,58.198,18.712,18.693,22.627]
[1688270626185,22.611,18.708,18.694,55.0]
[1688270626483,22.611,18.708,18.699,20.621]
[1688270628383,22.611,18.708,18.691,58.26]
[1688270628578,30.16396398,18.708,18.691,58.26]
[1688270628777,22.611,18.708,18.691,58.26]
[1688270629488,22.611,18.708,18.692,55.0]
[1688270629880,22.611,18.708,18.695,22.625]
[1688270631291,55.0,18.709,18.695,22.625]
[1688270631498,22.605,18.713,18.696,55.0]
[1688270631680,164.331,18.719,18.701,80.849]
[1688270631681,20.0,18.712,18.701,80.849]
[1688270631884,55.0,18.716,18.702,55.0]
[1688270632085,22.603,18.714,18.707,22.611]
[1688270632589,22.603,18.714,18.69,10.23]
[1688270632590,80.794,18.714,18.698,58.241]
[1688270632802,187.014,18.71,18.691,106.305]
[1688270632980,80.815,18.71,18.699,22.621]
[1688270633175,22.609,18.71,18.699,22.621]
[1688270633375,22.606,18.712,18.704,22.615]
[1688270633575,22.603,18.714,18.704,22.615]
[1688270633772,65.72796398,18.72,18.704,22.615]
[1688270633773,42.605,18.713,18.704,22.615]
[1688270635099,42.605,18.713,18.705,55.0]
[1688270635391,22.605,18.713,18.707,22.611]
[1688270636678,58.182,18.718,18.707,22.611]
[1688270636878,22.605,18.713,18.707,22.611]
[1688270637901,22.603,18.715,18.707,22.611]
[1688270638109,97.9537,18.73,18.692,10.83719922]
[1688270638405,22.603,18.715,18.698,55.0]
[1688270638580,22.603,18.715,18.697,58.242]
[1688270638787,20.0,18.714,18.702,22.617]
[1688270638984,22.607,18.711,18.693,106.291]
[1688270639196,22.604,18.713,18.702,22.617]
[1688270639381,22.605,18.713,18.702,22.617]
[1688270639581,22.605,18.713,18.696,106.276]
[1688270639582,22.605,18.713,18.695,22.625]
[1688270639799,20.0,18.712,18.684,106.346]
[1688270639993,22.615,18.704,18.692,22.629]
[1688270640298,20.0,18.712,18.692,22.629]
[1688270640299,58.207,18.71,18.692,22.629]
[1688270640495,22.615,18.704,18.692,22.629]
[1688270641699,22.615,18.704,18.689,22.632]
[1688270641889,22.615,18.704,18.69,20.0]
[1688270642590,22.615,18.704,18.69,22.632]
[1688270643882,22.615,18.704,18.691,55.0]
[1688270644101,22.615,18.704,18.692,22.629]
[1688270644286,22.615,18.704,18.693,55.0]
[1688270644688,90.0166,18.722,18.694,80.88]
[1688270644883,106.175,18.715,18.694,80.88]
[1688270645203,482.9,18.726,18.69,10.14]
[1688270645204,80.82,18.708,18.69,10.14]
[1688270645503,80.82,18.708,18.691,145.8656]
[1688270645704,94.165,18.725,18.694,22.627]
[1688270645705,22.609,18.71,18.694,22.627]
[1688270645898,94.165,18.725,18.694,22.627]
[1688270645899,94.165,18.725,18.695,75.0]
[1688270646098,22.61,18.708,18.695,65.83719922]
[1688270646294,80.82,18.708,18.695,22.626]
[1688270646492,22.61,18.708,18.695,22.626]
[1688270647004,22.61,18.708,18.695,80.876]
[1688270647305,22.61,18.708,18.695,91.71319922]
[1688270647508,116.442,18.717,18.696,55.0]
[1688270647805,22.609,18.709,18.702,22.617]
[1688270648005,22.609,18.709,18.703,77.616]
[1688270648195,22.609,18.709,18.703,55.0]
[1688270648392,22.609,18.709,18.702,55.0]
[1688270648606,22.609,18.709,18.702,77.616]
[1688270649100,116.444,18.717,18.702,77.616]
[1688270649300,106.155,18.718,18.702,77.616]
[1688270649301,22.607,18.711,18.702,77.616]
[1688270649607,22.607,18.711,18.701,22.618]
[1688270649902,22.607,18.711,18.695,22.625]
[1688270649903,30.15996398,18.711,18.695,22.625]
[1688270650205,255.365,18.725,18.695,22.625]
[1688270650206,58.197,18.716,18.695,22.625]
[1688270650398,22.604,18.713,18.696,20.0]
[1688270650707,22.604,18.713,18.701,22.618]
[1688270651203,22.604,18.713,18.702,113.226]
[1688270652601,22.604,18.713,18.703,22.615]
[1688270652903,22.604,18.713,18.704,55.0]
[1688270653102,22.604,18.713,18.704,77.615]
[1688270653297,22.604,18.713,18.704,22.615]
[1688270653894,20.0,18.712,18.704,22.615]
[1688270654194,22.608,18.71,18.704,22.615]
[1688270654389,22.608,18.71,18.698,58.239]
[1688270654602,22.608,18.71,18.699,55.0]
[1688270655012,22.608,18.71,18.703,22.616]
[1688270655300,22.599,18.718,18.712,22.605]
[1688270655498,22.599,18.718,18.711,22.606]
[1688270656299,58.166,18.724,18.715,22.601]
[1688270656611,22.595,18.721,18.711,22.606]
[1688270656802,80.764,18.721,18.701,69.06919922]
[1688270657111,80.764,18.721,18.705,22.613]
[1688270657291,88.31417195,18.721,18.706,55.0]
[1688270657608,22.601,18.716,18.706,77.612]
[1688270661609,106.112,18.726,18.707,10.83719922]
[1688270661909,22.601,18.716,18.709,22.608]
[1688270662206,22.601,18.716,18.706,55.0]
[1688270662207,22.601,18.716,18.71,77.607]
[1688270662409,22.601,18.716,18.71,22.607]
[1688270662709,22.601,18.716,18.711,77.606]
[1688270662909,27.90627224,18.743,18.711,22.606]